fUSD/lending_fUSD_20250512
["ID","MTS","AMOUNT","RATE_DAILY","PERIOD"]
[360789160,1747026649017,-480.53,0.00013698,2]
[360789161,1747026649026,-400.0,0.00013698,2]
[360789162,1747026649035,-151.0,0.00013698,2]
[360789163,1747026649045,-201.302206,0.00013698,2]
[360789164,1747026649054,-9.15918997,0.00013698,2]
[360789165,1747026649647,-390.84081003,0.00013698,2]
[360789166,1747026649657,-480.53,0.00013698,2]
[360789167,1747026649667,-400.0,0.00013698,2]
[360789168,1747026649676,-400.0,0.00013698,2]
[360789169,1747026649686,-151.0,0.00013698,2]
[360789170,1747026649695,-400.0,0.00013698,2]
[360789171,1747026649704,-480.53,0.00013698,2]
[360789172,1747026649714,-400.0,0.00013698,2]
[360789173,1747026649724,-480.53,0.00013698,2]
[360789174,1747026649733,-400.0,0.00013698,2]
[360789175,1747026649742,-151.0,0.00013698,2]
[360789176,1747026649752,-400.0,0.00013698,2]
[360789177,1747026649763,-480.53,0.00013698,2]
[360789178,1747026649772,-400.0,0.00013698,2]
[360789179,1747026649782,-151.0,0.00013698,2]
[360789180,1747026649791,-480.53,0.00013698,2]
[360789181,1747026649800,-400.0,0.00013698,2]
[360789182,1747026649810,-480.53,0.00013698,2]
[360789183,1747026649819,-151.0,0.00013698,2]
[360789184,1747026649828,-400.0,0.00013698,2]
[360789185,1747026649838,-480.53,0.00013698,2]
[360789186,1747026649847,-400.0,0.00013698,2]
[360789187,1747026649857,-151.0,0.00013698,2]
[360789188,1747026649866,-480.53,0.00013698,2]
[360789189,1747026649876,-400.0,0.00013698,2]
[360789190,1747026649885,-480.53,0.00013698,2]
[360789191,1747026649895,-151.0,0.00013698,2]
[360789192,1747026649904,-400.0,0.00013698,2]
[360789193,1747026649913,-480.53,0.00013698,2]
[360789194,1747026649923,-151.0,0.00013698,2]
[360789195,1747026649932,-447.48827221,0.00013698,2]
[360789196,1747026649942,-480.53,0.00013698,2]
[360789197,1747026649951,-151.0,0.00013698,2]
[360789198,1747026649961,-480.53,0.00013698,2]
[360789199,1747026649971,-763.83,0.00013698,2]
[360789200,1747026649981,-480.53,0.00013698,2]
[360789201,1747026649990,-151.0,0.00013698,2]
[360789202,1747026649999,-763.83,0.00013698,2]
[360789203,1747026650009,-480.54887804,0.00013698,2]
[360789204,1747026650019,-151.0,0.00013698,2]
[360789205,1747026650028,-763.83,0.00013698,2]
[360789206,1747026650038,-763.83,0.00013698,2]
[360789207,1747026650047,-151.0,0.00013698,2]
[360789208,1747026650057,-763.83,0.00013698,2]
[360789209,1747026650067,-763.83,0.00013698,2]
[360789210,1747026650076,-763.83,0.00013698,2]
[360789211,1747026650086,-448.24,0.00013698,2]
[360789212,1747026650095,-151.0,0.00013698,2]
[360789213,1747026650106,-448.24,0.00013698,2]
[360789214,1747026650115,-448.24,0.00013698,2]
[360789215,1747026650126,-763.83,0.00013698,2]
[360789216,1747026650136,-151.0,0.00013698,2]
[360789217,1747026650146,-448.24,0.00013698,2]
[360789218,1747026650156,-763.83,0.00013698,2]
[360789219,1747026650165,-151.0,0.00013698,2]
[360789220,1747026650174,-763.83,0.00013698,2]
[360789221,1747026650184,-448.24,0.00013698,2]
[360789222,1747026650197,-151.0,0.00013698,2]
[360789223,1747026650206,-448.24,0.00013698,2]
[360789224,1747026650216,-763.83,0.00013698,2]
[360789225,1747026650225,-448.24,0.00013698,2]
[360789226,1747026650235,-763.83,0.00013698,2]
[360789227,1747026650244,-151.0,0.00013698,2]
[360789228,1747026650254,-763.83,0.00013698,2]
[360789229,1747026650263,-448.24,0.00013698,2]
[360789230,1747026650274,-236.974095,0.00013698,2]
[360789231,1747026650285,-400.0,0.00013698,2]
[360789232,1747026650295,-763.83,0.00013698,2]
[360789233,1747026650304,-448.24,0.00013698,2]
[360789234,1747026650314,-982.74,0.00013698,2]
[360789235,1747026650323,-400.0,0.00013698,2]
[360789236,1747026650332,-763.83,0.00013698,2]
[360789237,1747026650342,-448.24,0.00013698,2]
[360789238,1747026650351,-982.74,0.00013698,2]
[360789239,1747026650360,-400.0,0.00013698,2]
[360789240,1747026650370,-763.83,0.00013698,2]
[360789241,1747026650379,-448.24,0.00013698,2]
[360789242,1747026650388,-982.74,0.00013698,2]
[360789243,1747026650397,-448.24,0.00013698,2]
[360789244,1747026650406,-763.83,0.00013698,2]
[360789245,1747026650416,-466.59288711,0.00013698,2]
[360789246,1747026651556,-495.16584685,0.00013698,2]
[360789247,1747026651567,-20.98126604,0.00013698,2]
[360789248,1747026651578,-400.0,0.00013698,2]
[360789249,1747026651589,-448.24,0.00013698,2]
[360789250,1747026651599,-763.83,0.00013698,2]
[360789251,1747026651608,-982.74,0.00013698,2]
[360789252,1747026651617,-400.0,0.00013698,2]
[360789253,1747026651627,-448.24,0.00013698,2]
[360789254,1747026651637,-982.74,0.00013698,2]
[360789255,1747026651646,-763.83,0.00013698,2]
[360789256,1747026651655,-400.0,0.00013698,2]
[360789257,1747026651664,-448.24,0.00013698,2]
[360789258,1747026651674,-982.74,0.00013698,2]
[360789259,1747026651683,-763.83,0.00013698,2]
[360789260,1747026651692,-400.0,0.00013698,2]
[360789261,1747026651702,-448.24,0.00013698,2]
[360789262,1747026651711,-982.74,0.00013698,2]
[360789263,1747026651720,-763.83,0.00013698,2]
[360789264,1747026651730,-274.58317515,0.00013698,2]
[360789265,1747026651739,-982.74,0.00013698,2]
[360789266,1747026651749,-233.61352207,0.00013698,2]
[360789267,1747026651781,-530.21647793,0.00013698,2]
[360789268,1747026651791,-448.24,0.00013698,2]
[360789269,1747026651800,-982.74,0.00013698,2]
[360789270,1747026651810,-1372.47,0.00013698,2]
[360789271,1747026651820,-448.24,0.00013698,2]
[360789272,1747026651831,-763.83,0.00013698,2]
[360789273,1747026651840,-1372.47,0.00013698,2]
[360789274,1747026651850,-982.74,0.00013698,2]
[360789275,1747026651859,-982.74,0.00013698,2]
[360789276,1747026651868,-270.2819139,0.00013698,2]
[360789277,1747026652019,-1102.1880861,0.00013698,2]
[360789278,1747026652029,-426.68707055,0.00013698,2]
[360789279,1747026652050,-556.05292945,0.00013698,2]
[360789280,1747026652059,-1354.94707055,0.00013698,2]
[360789281,1747026652072,-17.52292945,0.00013698,2]
[360789282,1747026652081,-764.0483514,0.00013698,2]
[360789283,1747026652090,-982.74,0.00013698,2]
[360789284,1747026652099,-431.26084715,0.00013698,2]
[360789286,1747026689523,-170.30730665,0.00012822,2]
[360789287,1747026875902,2504.0,0.00012455,2]
[360789288,1747026953593,-1200.0,0.00012631,2]
[360789289,1747026953616,-150.0,0.00012631,2]
[360789290,1747026953642,-300.0,0.00012631,2]
[360789291,1747026953668,-300.0,0.00012631,2]
[360789292,1747026953693,-209.83163048,0.00012632,2]
[360789293,1747026953717,-188.90293207,0.00012632,2]
[360789294,1747026953747,-500.0,0.00012632,2]
[360789295,1747026953777,-500.0,0.00012632,2]
[360789296,1747026953805,-500.0,0.00012632,2]
[360789297,1747026953833,-500.0,0.00012632,2]
[360789298,1747026953862,-500.0,0.00012632,2]
[360789299,1747026953890,-500.0,0.00012632,2]
[360789300,1747026953917,-500.0,0.00012632,2]
[360789301,1747026953948,-500.0,0.00012632,2]
[360789302,1747026953977,-500.0,0.00012632,2]
[360789303,1747026954005,-500.0,0.00012632,2]
[360789304,1747026954034,-500.0,0.00012632,2]
[360789305,1747026954062,-500.0,0.00012632,2]
[360789306,1747026954090,-500.0,0.00012632,2]
[360789307,1747026954117,-500.0,0.00012632,2]
[360789308,1747026954145,-500.0,0.00012632,2]
[360789309,1747026954173,-500.0,0.00012632,2]
[360789310,1747026954206,-500.0,0.00012632,2]
[360789311,1747026954235,-500.0,0.00012632,2]
[360789312,1747026954263,-500.0,0.00012632,2]
[360789313,1747026954293,-500.0,0.00012632,2]
[360789314,1747026954325,-644.8704868,0.00012632,2]
[360789315,1747026954356,-500.0,0.00012632,2]
[360789316,1747026954387,-500.0,0.00012632,2]
[360789317,1747026954416,-500.0,0.00012632,2]
[360789318,1747026954446,-500.0,0.00012632,2]
[360789319,1747026954475,-500.0,0.00012632,2]
[360789320,1747026954503,-500.0,0.00012632,2]
[360789321,1747026954532,-500.0,0.00012632,2]
[360789322,1747026954559,-500.0,0.00012632,2]
[360789323,1747026954588,-500.0,0.00012632,2]
[360789324,1747026954617,-500.0,0.00012632,2]
[360789325,1747026954645,-500.0,0.00012632,2]
[360789326,1747026954674,-500.0,0.00012632,2]
[360789327,1747026954701,-500.0,0.00012632,2]
[360789328,1747026954729,-500.0,0.00012632,2]
[360789329,1747026954760,-571.65227631,0.00012632,2]
[360789330,1747026954788,-500.0,0.00012632,2]
[360789331,1747026954817,-500.0,0.00012632,2]
[360789332,1747026954844,-434.74267434,0.00012632,2]
[360789334,1747027284192,668.68,0.00010688,2]
[360789336,1747027373435,-420.80925818,0.0001256,2]
[360789337,1747027377912,-164.68081543,0.00012515,2]
[360789338,1747027406231,-266.55918457,0.00012515,2]
[360789339,1747027406255,-22.16,0.0001256,2]
[360789340,1747027421307,-230.36590699,0.0001256,2]
[360789341,1747027436525,-186.03411536,0.0001256,2]
[360789342,1747027451825,-164.71967137,0.0001256,2]
[360789343,1747027466259,-335.28032863,0.0001256,2]
[360789344,1747027481723,-261.55610547,0.00012559,2]
[360789345,1747027482231,-238.44389453,0.00012559,2]
[360789346,1747027482259,-23.11221094,0.00012559,2]
[360789347,1747027497065,-226.58947392,0.00012559,2]
[360789348,1747027511339,-287.81143084,0.00012558,2]
[360789349,1747027545009,-219.95590897,0.00012511,2]
[360789350,1747027556565,-155.60034738,0.00012511,2]
[360789351,1747027571843,-198.15484678,0.00012466,2]
[360789352,1747027586169,-16.87515322,0.00012466,2]
[360789353,1747027586193,-166.66315328,0.00012511,2]
[360789354,1747027588921,500.0,0.00012422,2]
[360789355,1747027601254,-247.64428827,0.0001251,2]
[360789357,1747027616181,-169.75961356,0.0001251,2]
[360789362,1747027631244,-247.23917222,0.00012509,2]
[360789368,1747027646153,171.28,0.00012387,2]
[360789369,1747027646238,-52.76082778,0.00012509,2]
[360789370,1747027646271,-82.59609817,0.0001251,2]
[360789371,1747027646303,-108.64478979,0.0001251,2]
[360789372,1747027661077,-244.00171574,0.0001251,2]
[360789560,1747027676703,-147.35349447,0.0001251,2]
[360789561,1747027676733,-48.24650553,0.0001251,2]
[360789687,1747027679978,-250.0,0.0001251,2]
[360789983,1747027691426,-240.28678669,0.00012479,2]
[360790007,1747027728998,187.58670763,0.0001241,2]
[360790049,1747027750253,188.441633,0.00012416,2]
[360790059,1747027754267,1108.35,0.0001241,2]
[360790080,1747027808612,250.0,0.000124,2]
[360790081,1747027818448,-345.20321331,0.00012479,2]
[360790082,1747027818472,-1200.0,0.00012508,2]
[360790083,1747027818503,-500.0,0.00012509,2]
[360790084,1747027818534,-500.0,0.00012509,2]
[360790085,1747027818565,-544.61520558,0.00012509,2]
[360790086,1747027818596,-500.0,0.00012509,2]
[360790087,1747027818622,-457.78059037,0.00012511,2]
[360790088,1747027818646,-250.0,0.00012535,2]
[360790089,1747027818671,-300.0,0.00012558,2]
[360790090,1747027818695,-5212.57071947,0.0001256,2]
[360790091,1747027818721,-152.94,0.00012642,2]
[360790092,1747027818745,-150.0,0.0001272,2]
[360790093,1747027818770,-227.85,0.00012731,2]
[360790094,1747027818793,-8273.41,0.00012732,2]
[360790095,1747027818818,-306.08,0.00012734,2]
[360790096,1747027818843,-858.89,0.00012741,2]
[360790097,1747027818868,-1220.66027127,0.00012822,2]
[360790100,1747027832189,-461.45242208,0.00012822,2]
[360790101,1747027832198,-2400.0,0.00012876,2]
[360790102,1747027832208,-668.68,0.00012952,2]
[360790103,1747027832217,-207.4,0.00013007,2]
[360790104,1747027832229,-2270.79785215,0.00013546,2]
[360790106,1747027832239,-1495.2987425,0.00013552,2]
[360790108,1747027832251,-775.49910965,0.00013552,2]
[360790112,1747027832525,-300.0,0.00013557,2]
[360790113,1747027832547,-2270.79785215,0.00013558,2]
[360790114,1747027832557,-84.56477076,0.00013563,2]
[360790115,1747027832589,-2186.23308139,0.00013563,2]
[360790116,1747027832599,-2270.79785215,0.00013569,2]
[360790117,1747027832608,-2270.79785215,0.00013575,2]
[360790118,1747027832619,-2270.79785215,0.00013581,2]
[360790119,1747027832628,-150.0,0.00013586,2]
[360790120,1747027832637,-2270.79785215,0.00013586,2]
[360790121,1747027832647,-668.65185757,0.0001359,2]
[360790122,1747027832656,-12500.0,0.00013591,2]
[360790123,1747027832665,-2270.79785215,0.00013592,2]
[360790124,1747027832675,-2062.66247269,0.00013597,2]
[360790125,1747027832684,-205.95931158,0.00013598,2]
[360790126,1747027832694,-6743.027022,0.00013598,2]
[360790127,1747027832712,-45659.24411916,0.00013598,2]
[360790128,1747027832721,-2300.47553323,0.00013598,2]
[360790129,1747027832734,-2270.79785215,0.00013598,2]
[360790130,1747027832743,-469.23979638,0.00013598,2]
[360790131,1747027832753,-373.79165697,0.00013598,2]
[360790132,1747027832763,-8736.0068,0.00013598,2]
[360790133,1747027832772,-23172.74511211,0.00013598,2]
[360790138,1747027832904,-966.01448789,0.00013598,2]
[360790139,1747027832913,-3735.851,0.00013598,2]
[360790140,1747027832922,-724.7628,0.00013598,2]
[360790141,1747027832931,-2500.0,0.00013598,2]
[360790142,1747027832940,-4623.25641123,0.000136,2]
[360790143,1747027832952,-6099.9999999,0.000136,2]
[360790144,1747027832964,-1776.74358887,0.000136,2]
[360790145,1747027832973,-4103.25641113,0.000136,2]
[360790146,1747027832987,-3550.000005,0.000136,2]
[360790147,1747027833000,-1300.0,0.000136,2]
[360790148,1747027833039,-1039.15452236,0.000136,2]
[360790149,1747027833051,-2507.58906151,0.000136,2]
[360790150,1747027833061,-3102.156,0.00013646,2]
[360790151,1747027833071,-184.4146177,0.00013646,2]
[360790152,1747027833080,-183.818931,0.00013655,2]
[360790153,1747027833090,-229.773666,0.00013655,2]
[360790154,1747027833100,-165.0,0.00013671,2]
[360790155,1747027833109,-500.0,0.00013673,2]
[360790156,1747027833119,-502.02433921,0.00013673,2]
[360790157,1747027833129,-500.0,0.00013673,2]
[360790158,1747027833139,-501.92231379,0.00013673,2]
[360790159,1747027833149,-500.0,0.00013673,2]
[360790160,1747027833159,-500.0,0.00013673,2]
[360790161,1747027833169,-366.53435314,0.00013673,2]
[360790162,1747027833178,-500.0,0.00013673,2]
[360790163,1747027833187,-300.0,0.00013697,2]
[360790164,1747027833197,-309.93556122,0.00013697,2]
[360790165,1747027833207,-566.0,0.00013698,2]
[360790166,1747027833217,-151.0,0.00013698,2]
[360790167,1747027833227,-151.0,0.00013698,2]
[360790168,1747027833237,-151.0,0.00013698,2]
[360790169,1747027833246,-151.0,0.00013698,2]
[360790170,1747027833257,-151.0,0.00013698,2]
[360790171,1747027833267,-151.0,0.00013698,2]
[360790172,1747027833277,-151.0,0.00013698,2]
[360790173,1747027833287,-151.0,0.00013698,2]
[360790174,1747027833296,-151.0,0.00013698,2]
[360790175,1747027833306,-151.0,0.00013698,2]
[360790176,1747027833315,-151.0,0.00013698,2]
[360790177,1747027833325,-151.0,0.00013698,2]
[360790178,1747027833335,-151.0,0.00013698,2]
[360790179,1747027833344,-276.369935,0.00013698,2]
[360790180,1747027833353,-151.0,0.00013698,2]
[360790181,1747027833362,-215.767682,0.00013698,2]
[360790182,1747027833371,-152.99535,0.00013698,2]
[360790183,1747027833381,-151.0,0.00013698,2]
[360790184,1747027833390,-151.0,0.00013698,2]
[360790185,1747027833400,-254.797923,0.00013698,2]
[360790186,1747027833410,-151.0,0.00013698,2]
[360790187,1747027833419,-151.0,0.00013698,2]
[360790188,1747027833430,-151.0,0.00013698,2]
[360790189,1747027833439,-151.0,0.00013698,2]
[360790190,1747027833450,-151.0,0.00013698,2]
[360790191,1747027833460,-151.0,0.00013698,2]
[360790192,1747027833471,-161.864324,0.00013698,2]
[360790193,1747027833487,-182.557374,0.00013698,2]
[360790194,1747027833498,-182.557374,0.00013698,2]
[360790195,1747027833508,-182.557374,0.00013698,2]
[360790196,1747027833519,-182.557374,0.00013698,2]
[360790197,1747027833535,-182.557374,0.00013698,2]
[360790198,1747027833550,-182.557374,0.00013698,2]
[360790199,1747027833560,-182.557374,0.00013698,2]
[360790200,1747027833571,-182.557374,0.00013698,2]
[360790201,1747027833582,-182.557374,0.00013698,2]
[360790202,1747027833592,-182.557374,0.00013698,2]
[360790203,1747027833603,-182.557374,0.00013698,2]
[360790204,1747027833613,-182.557374,0.00013698,2]
[360790205,1747027833625,-182.557374,0.00013698,2]
[360790206,1747027833635,-182.557374,0.00013698,2]
[360790207,1747027833646,-182.557374,0.00013698,2]
[360790208,1747027833656,-182.557374,0.00013698,2]
[360790209,1747027833666,-182.557374,0.00013698,2]
[360790210,1747027833676,-182.557374,0.00013698,2]
[360790211,1747027833686,-182.557374,0.00013698,2]
[360790212,1747027833697,-182.557375,0.00013698,2]
[360790213,1747027833707,-151.0,0.00013698,2]
[360790214,1747027833717,-151.0,0.00013698,2]
[360790215,1747027833730,-151.0,0.00013698,2]
[360790216,1747027833740,-151.0,0.00013698,2]
[360790217,1747027833749,-151.0,0.00013698,2]
[360790218,1747027833760,-151.0,0.00013698,2]
[360790219,1747027833771,-151.0,0.00013698,2]
[360790220,1747027833781,-151.0,0.00013698,2]
[360790221,1747027833792,-151.0,0.00013698,2]
[360790222,1747027833802,-151.0,0.00013698,2]
[360790223,1747027833813,-151.0,0.00013698,2]
[360790224,1747027833823,-151.0,0.00013698,2]
[360790225,1747027833833,-151.0,0.00013698,2]
[360790226,1747027833843,-151.0,0.00013698,2]
[360790227,1747027833852,-151.0,0.00013698,2]
[360790228,1747027833862,-151.0,0.00013698,2]
[360790229,1747027833871,-151.0,0.00013698,2]
[360790230,1747027833881,-151.0,0.00013698,2]
[360790231,1747027833891,-241.641534,0.00013698,2]
[360790232,1747027833901,-151.0,0.00013698,2]
[360790233,1747027833910,-151.0,0.00013698,2]
[360790234,1747027833919,-151.0,0.00013698,2]
[360790235,1747027833929,-151.0,0.00013698,2]
[360790236,1747027833938,-151.0,0.00013698,2]
[360790237,1747027833948,-151.0,0.00013698,2]
[360790238,1747027833959,-151.0,0.00013698,2]
[360790239,1747027833969,-151.0,0.00013698,2]
[360790240,1747027833980,-151.0,0.00013698,2]
[360790241,1747027833991,-151.0,0.00013698,2]
[360790242,1747027834001,-230.4563,0.00013698,2]
[360790243,1747027834011,-242.081847,0.00013698,2]
[360790244,1747027834021,-242.081847,0.00013698,2]
[360790245,1747027834032,-242.081847,0.00013698,2]
[360790246,1747027834043,-242.081847,0.00013698,2]
[360790247,1747027834054,-242.081847,0.00013698,2]
[360790248,1747027834064,-242.081847,0.00013698,2]
[360790249,1747027834074,-242.081847,0.00013698,2]
[360790250,1747027834085,-242.081847,0.00013698,2]
[360790251,1747027834095,-242.081847,0.00013698,2]
[360790252,1747027834104,-242.081847,0.00013698,2]
[360790253,1747027834114,-242.081847,0.00013698,2]
[360790254,1747027834124,-242.081847,0.00013698,2]
[360790255,1747027834134,-242.081847,0.00013698,2]
[360790256,1747027834145,-242.081847,0.00013698,2]
[360790257,1747027834155,-242.081847,0.00013698,2]
[360790258,1747027834165,-242.081847,0.00013698,2]
[360790259,1747027834176,-242.081847,0.00013698,2]
[360790260,1747027834186,-242.081847,0.00013698,2]
[360790261,1747027834198,-242.081847,0.00013698,2]
[360790262,1747027834208,-242.081843,0.00013698,2]
[360790263,1747027834219,-151.0,0.00013698,2]
[360790264,1747027834231,-151.0,0.00013698,2]
[360790265,1747027834241,-151.0,0.00013698,2]
[360790266,1747027834251,-178.654273,0.00013698,2]
[360790267,1747027834261,-156.574581,0.00013698,2]
[360790268,1747027834271,-156.574573,0.00013698,2]
[360790269,1747027834281,-155.086846,0.00013698,2]
[360790270,1747027834291,-151.0,0.00013698,2]
[360790271,1747027834300,-151.0,0.00013698,2]
[360790272,1747027834310,-151.0,0.00013698,2]
[360790273,1747027834320,-151.0,0.00013698,2]
[360790274,1747027834329,-151.0,0.00013698,2]
[360790275,1747027834339,-202.252234,0.00013698,2]
[360790276,1747027834349,-174.987149,0.00013698,2]
[360790277,1747027834358,-151.0,0.00013698,2]
[360790278,1747027834367,-151.0,0.00013698,2]
[360790279,1747027834377,-161.438416,0.00013698,2]
[360790280,1747027834386,-151.0,0.00013698,2]
[360790281,1747027834396,-151.0,0.00013698,2]
[360790282,1747027834405,-151.0,0.00013698,2]
[360790283,1747027834416,-151.0,0.00013698,2]
[360790284,1747027834425,-151.0,0.00013698,2]
[360790285,1747027834436,-295.179107,0.00013698,2]
[360790286,1747027834446,-151.0,0.00013698,2]
[360790287,1747027834456,-151.0,0.00013698,2]
[360790288,1747027834466,-151.0,0.00013698,2]
[360790289,1747027834475,-151.0,0.00013698,2]
[360790290,1747027834488,-151.0,0.00013698,2]
[360790291,1747027834498,-151.0,0.00013698,2]
[360790292,1747027834508,-154.726793,0.00013698,2]
[360790293,1747027834518,-198.745326,0.00013698,2]
[360790294,1747027834527,-198.745326,0.00013698,2]
[360790295,1747027834540,-198.745326,0.00013698,2]
[360790296,1747027834549,-198.745326,0.00013698,2]
[360790297,1747027834559,-198.745326,0.00013698,2]
[360790298,1747027834569,-198.745326,0.00013698,2]
[360790299,1747027834578,-198.745326,0.00013698,2]
[360790300,1747027834588,-198.745326,0.00013698,2]
[360790301,1747027834598,-198.745326,0.00013698,2]
[360790302,1747027834608,-198.745326,0.00013698,2]
[360790303,1747027834618,-198.745326,0.00013698,2]
[360790304,1747027834628,-198.745326,0.00013698,2]
[360790305,1747027834638,-198.745326,0.00013698,2]
[360790306,1747027834647,-198.745326,0.00013698,2]
[360790307,1747027834657,-198.745326,0.00013698,2]
[360790308,1747027834667,-198.745326,0.00013698,2]
[360790309,1747027834676,-198.745326,0.00013698,2]
[360790310,1747027834686,-198.745326,0.00013698,2]
[360790311,1747027834696,-198.745326,0.00013698,2]
[360790312,1747027834706,-198.74532,0.00013698,2]
[360790313,1747027834716,-151.0,0.00013698,2]
[360790314,1747027834727,-151.0,0.00013698,2]
[360790315,1747027834737,-151.0,0.00013698,2]
[360790316,1747027834746,-151.0,0.00013698,2]
[360790317,1747027834756,-151.0,0.00013698,2]
[360790318,1747027834765,-151.0,0.00013698,2]
[360790319,1747027834775,-151.0,0.00013698,2]
[360790320,1747027834785,-151.0,0.00013698,2]
[360790321,1747027834794,-151.0,0.00013698,2]
[360790322,1747027834804,-151.0,0.00013698,2]
[360790323,1747027834813,-151.0,0.00013698,2]
[360790324,1747027834823,-151.0,0.00013698,2]
[360790325,1747027834832,-151.0,0.00013698,2]
[360790326,1747027834842,-151.0,0.00013698,2]
[360790327,1747027834852,-151.0,0.00013698,2]
[360790328,1747027834861,-151.0,0.00013698,2]
[360790329,1747027834871,-151.0,0.00013698,2]
[360790330,1747027834881,-151.0,0.00013698,2]
[360790331,1747027834890,-296.448947,0.00013698,2]
[360790332,1747027834900,-151.0,0.00013698,2]
[360790333,1747027834909,-151.0,0.00013698,2]
[360790334,1747027834918,-151.0,0.00013698,2]
[360790335,1747027834928,-151.0,0.00013698,2]
[360790336,1747027834938,-151.0,0.00013698,2]
[360790337,1747027834948,-151.0,0.00013698,2]
[360790338,1747027834957,-151.0,0.00013698,2]
[360790339,1747027834967,-151.0,0.00013698,2]
[360790340,1747027834977,-151.0,0.00013698,2]
[360790341,1747027834987,-151.0,0.00013698,2]
[360790342,1747027834997,-151.0,0.00013698,2]
[360790343,1747027835007,-151.0,0.00013698,2]
[360790344,1747027835017,-151.0,0.00013698,2]
[360790345,1747027835027,-151.0,0.00013698,2]
[360790346,1747027835037,-151.0,0.00013698,2]
[360790347,1747027835047,-151.0,0.00013698,2]
[360790348,1747027835057,-151.0,0.00013698,2]
[360790349,1747027835067,-151.0,0.00013698,2]
[360790350,1747027835077,-227.198322,0.00013698,2]
[360790351,1747027835086,-163.139304,0.00013698,2]
[360790352,1747027835097,-163.139304,0.00013698,2]
[360790353,1747027835107,-163.139304,0.00013698,2]
[360790354,1747027835116,-163.139304,0.00013698,2]
[360790355,1747027835126,-163.139304,0.00013698,2]
[360790356,1747027835136,-163.139304,0.00013698,2]
[360790357,1747027835146,-151.0,0.00013698,2]
[360790358,1747027835156,-151.0,0.00013698,2]
[360790359,1747027835165,-163.139304,0.00013698,2]
[360790360,1747027835175,-151.0,0.00013698,2]
[360790361,1747027835185,-151.0,0.00013698,2]
[360790362,1747027835195,-163.139304,0.00013698,2]
[360790363,1747027835206,-151.0,0.00013698,2]
[360790364,1747027835216,-163.139304,0.00013698,2]
[360790365,1747027835228,-151.0,0.00013698,2]
[360790366,1747027835239,-163.139304,0.00013698,2]
[360790367,1747027835249,-151.0,0.00013698,2]
[360790368,1747027835259,-151.0,0.00013698,2]
[360790369,1747027835269,-151.0,0.00013698,2]
[360790370,1747027835278,-151.0,0.00013698,2]
[360790371,1747027835288,-151.0,0.00013698,2]
[360790372,1747027835298,-151.0,0.00013698,2]
[360790373,1747027835308,-178.254028,0.00013698,2]
[360790374,1747027835318,-163.139304,0.00013698,2]
[360790375,1747027835327,-163.139304,0.00013698,2]
[360790376,1747027835337,-163.139304,0.00013698,2]
[360790377,1747027835346,-163.139304,0.00013698,2]
[360790378,1747027835355,-163.139304,0.00013698,2]
[360790379,1747027835364,-163.139304,0.00013698,2]
[360790380,1747027835374,-163.139304,0.00013698,2]
[360790381,1747027835383,-163.139304,0.00013698,2]
[360790382,1747027835394,-163.139304,0.00013698,2]
[360790383,1747027835405,-163.139309,0.00013698,2]